[Event "EYCC Girls-U12 2019"]
[Site "Bratislava"]
[Date "2019.08.06"]
[Round "5.9"]
[White "Helliesen, Lykke-Merlot"]
[Black "Schippke, Manon"]
[Result "1/2-1/2"]
[ECO "D94"]
[WhiteElo "1505"]
[BlackElo "1743"]
[Annotator "NA"]
[PlyCount "224"]
[EventDate "2019.08.02"]
[EventType "swiss"]
[EventCountry "SVK"]
[SourceTitle "playchess.com"]
[Source "ChessBase"]
[SourceQuality "1"]
[TimeControl "40/5400+30:1800+30"]

1. d4 {[%emt 0:00:00]} Nf6 {[%emt 0:00:00]} 2. c4 {[%emt 0:00:00]} g6 {[%emt 0:00:16]} 3. Nc3 {[%emt 0:00:10]} d5 {[%emt 0:00:21]} 4. Nf3 {[%emt 0:00:49]} Bg7 {[%emt 0:02:00]} 5. e3 {[%emt 0:01:02]} O-O {[%emt 0:03:29]} 6. Bd3 {[%emt 0:02:17]} c5 {[%emt 0:05:12]} 7. O-O {[%emt 0:05:26]} Nc6 {[%emt 0:04:58]} 8. dxc5 {[%emt 0:07:12]} dxc4 {[%emt 0:03:16]} 9. Bxc4 {[%emt 0:00:36]} Qa5 {[%emt 0:00:54]} 10. Qe2 {[%emt 0:06:10]} Qxc5 {[%emt 0:01:29]} 11. Bb3 {[%emt 0:04:10]} Bg4 {[%emt 0:07:23]} 12. h3 {[%emt 0:03:24]} Bxf3 {[%emt 0:05:53]} 13. Qxf3 {[%emt 0:00:31]} Rad8 {[%emt 0:02:17]} 14. e4 {[%emt 0:04:05]} Nd4 {[%emt 0:00:44]} 15. Qe3 {[%emt 0:02:18]} Nxb3 {[%emt 0:05:42]} 16. axb3 {[%emt 0:00:22]} Qxe3 {[%emt 0:02:28]} 17. Bxe3 {[%emt 0:00:07]} a6 {[%emt 0:00:05]} 18. Rfd1 {[%emt 0:03:11]} e5 {[%emt 0:15:41]} 19. f3 {[%emt 0:06:14]} Nh5 {[%emt 0:04:11]} 20. Kh2 {[%emt 0:07:43]} Nf4 {[%emt 0:01:51]} 21. g3 {[%emt 0:00:42]} Ne6 {[%emt 0:01:27]} 22. Nd5 {[%emt 0:05:10]} Nd4 {[%emt 0:02:55]} 23. Bxd4 {[%emt 0:03:25]} exd4 {[%emt 0:00:17]} 24. g4 {[%emt 0:02:48]} h6 {[%emt 0:01:58]} 25. Ra4 {[%emt 0:06:40]} Rfe8 {[%emt 0:01:16]} 26. Rc4 {[%emt 0:04:12]} Kh8 {[%emt 0:03:03]} 27. Kg2 {[%emt 0:03:57]} Be5 {[%emt 0:04:43]} 28. f4 {[%emt 0:04:17]} Bg7 {[%emt 0:00:48]} 29. Kf3 {[%emt 0:00:23]} f5 {[%emt 0:01:49]} 30. Nb4 {[%emt 0:07:28]} fxe4+ {[%emt 0:00:13]} 31. Ke2 {[%emt 0:01:08]} a5 {[%emt 0:03:41]} 32. Na2 {[%emt 0:01:01]} Rc8 {[%emt 0:01:12]} 33. Kd2 {[%emt 0:04:38]} Rxc4 {[%emt 0:00:27]} 34. bxc4 {[%emt 0:00:12]} Rf8 {[%emt 0:01:44]} 35. Rf1 {[%emt 0:00:23]} g5 {[%emt 0:00:12]} 36. f5 {[%emt 0:00:16]} Be5 {[%emt 0:00:04]} 37. Nc1 {[%emt 0:01:04]} Bf4+ {[%emt 0:00:10]} 38. Kd1 {[%emt 0:00:26]} d3 {[%emt 0:00:46]} 39. Rg1 {[%emt 0:01:34]} Rd8 {[%emt 0:00:18]} 40. Nb3 {[%emt 0:00:00]} e3 {[%emt 0:00:00]} 41. Nxa5 {[%emt 0:03:21]} e2+ {[%emt 0:00:51]} 42. Ke1 {[%emt 0:00:07]} Re8 {[%emt 0:00:11]} 43. Nb3 {[%emt 0:00:45]} Be3 {[%emt 0:02:15]} 44. Rh1 {[%emt 0:00:25]} Ra8 {[%emt 0:00:51]} 45. h4 {[%emt 0:02:11]} gxh4 {[%emt 0:01:14]} 46. Rxh4 Re8 {[%emt 0:04:54]} 47. Rh1 {[%emt 0:04:04]} Bf4 {[%emt 0:00:42]} 48. Rg1 {[%emt 0:00:54]} Re3 {[%emt 0:02:03]} 49. Kf2 {[%emt 0:01:27]} Re4 {[%emt 0:01:04]} 50. Ke1 {[%emt 0:01:49]} Bg5 {[%emt 0:00:38]} 51. Rh1 {[%emt 0:01:14]} Rxg4 {[%emt 0:00:07]} 52. Nc5 {[%emt 0:01:38]} Bh4+ {[%emt 0:00:42]} 53. Kd2 {[%emt 0:00:47]} e1=Q+ 54. Rxe1 {[%emt 0:00:00]} Bxe1+ {[%emt 0:00:39]} 55. Kxe1 {[%emt 0:00:00]} Rf4 {[%emt 0:00:21]} 56. Nxb7 {[%emt 0:00:00]} Rxc4 {[%emt 0:00:48]} 57. Kd2 {[%emt 0:00:29]} Rc2+ {[%emt 0:00:27]} 58. Kxd3 {[%emt 0:00:17]} Rxb2 {[%emt 0:00:05]} 59. Nd6 {[%emt 0:00:24]} Kg7 {[%emt 0:01:12]} 60. Ke4 {[%emt 0:00:34]} Re2+ {[%emt 0:01:46]} 61. Kf4 {[%emt 0:00:25]} Ra2 {[%emt 0:02:46]} 62. Ke5 {[%emt 0:00:35]} Re2+ {[%emt 0:00:25]} 63. Kf4 {[%emt 0:00:13]} Kf6 {[%emt 0:00:39]} 64. Ne4+ {[%emt 0:00:21]} Ke7 {[%emt 0:00:26]} 65. Ke5 {[%emt 0:00:58]} Ra2 {[%emt 0:01:01]} 66. f6+ {[%emt 0:00:46]} Kf7 {[%emt 0:00:44]} 67. Nd6+ {[%emt 0:00:51]} Kg6 {[%emt 0:00:26]} 68. f7 {[%emt 0:03:07]} Re2+ {[%emt 0:00:26]} 69. Kf4 {[%emt 0:00:51]} Kg7 {[%emt 0:00:22]} 70. Nf5+ {[%emt 0:01:19]} Kxf7 {[%emt 0:00:05]} 71. Nxh6+ {[%emt 0:00:06]} Kg6 {[%emt 0:00:03]} 72. Ng4 {[%emt 0:00:18]} Ra2 {[%emt 0:00:41]} 73. Ne5+ {[%emt 0:00:20]} Kf6 {[%emt 0:00:06]} 74. Nd3 {[%emt 0:01:22]} Ra4+ {[%emt 0:00:29]} 75. Ke3 {[%emt 0:00:22]} Kf5 {[%emt 0:01:24]} 76. Nc5 {[%emt 0:00:40]} Rc4 {[%emt 0:01:22]} 77. Nd3 {[%emt 0:00:28]} Rh4 {[%emt 0:00:37]} 78. Nf2 {[%emt 0:01:23]} Rf4 {[%emt 0:01:01]} 79. Nd3 {[%emt 0:00:50]} Re4+ {[%emt 0:01:22]} 80. Kd2 {[%emt 0:00:11]} Re8 {[%emt 0:00:50]} 81. Kc3 {[%emt 0:00:28]} Ke4 {[%emt 0:00:16]} 82. Nf2+ {[%emt 0:02:14]} Ke3 {[%emt 0:00:11]} 83. Ng4+ {[%emt 0:00:08]} Kf4 {[%emt 0:00:11]} 84. Nf6 {[%emt 0:00:29]} Rd8 {[%emt 0:00:03]} 85. Kc4 {[%emt 0:00:46]} Ke5 {[%emt 0:00:35]} 86. Ng4+ {[%emt 0:00:25]} Kf4 {[%emt 0:00:34]} 87. Nf6 {[%emt 0:00:27]} Kf5 {[%emt 0:00:05]} 88. Nd5 {[%emt 0:00:24]} Ke5 {[%emt 0:00:08]} 89. Nb6 {[%emt 0:01:36]} Ke4 {[%emt 0:01:13]} 90. Kc5 {[%emt 0:01:07]} Kd3 {[%emt 0:00:06]} 91. Nd5 {[%emt 0:00:34]} Rc8+ {[%emt 0:00:17]} 92. Kd6 {[%emt 0:00:25]} Kd4 {[%emt 0:00:08]} 93. Ne7 {[%emt 0:00:35]} Ra8 {[%emt 0:00:58]} 94. Nc6+ {[%emt 0:00:25]} Ke4 {[%emt 0:00:19]} 95. Kc5 {[%emt 0:00:34]} Ra1 {[%emt 0:00:09]} 96. Kd6 {[%emt 0:00:26]} Rc1 {[%emt 0:00:25]} 97. Nb4 {[%emt 0:00:57]} Kf5 {[%emt 0:00:10]} 98. Nd5 {[%emt 0:00:39]} Rd1 {[%emt 0:00:27]} 99. Kc5 {[%emt 0:00:20]} Ke5 {[%emt 0:00:11]} 100. Ne3 {[%emt 0:01:32]} Rc1+ {[%emt 0:00:04]} 101. Nc4+ {[%emt 0:00:18]} Ke4 {[%emt 0:00:30]} 102. Kb5 {[%emt 0:00:48]} Kd4 {[%emt 0:02:08]} 103. Na3 {[%emt 0:00:42]} Rc8 {[%emt 0:00:41]} 104. Kb4 {[%emt 0:01:25]} Rb8+ {[%emt 0:00:27]} 105. Ka4 {[%emt 0:02:02]} Kc5 {[%emt 0:19:59]} 106. Nc2 {[%emt 0:00:22]} Kc4 {[%emt 0:00:52]} 107. Na3+ {[%emt 0:00:29]} Kc3 {[%emt 0:04:31]} 108. Nb5+ {[%emt 0:00:28]} Kb2 {[%emt 0:02:02]} 109. Kb4 {[%emt 0:00:28]} Kc2 {[%emt 0:00:05]} 110. Kc4 {[%emt 0:00:20]} Kd2 {[%emt 0:00:23]} 111. Nd6 {[%emt 0:00:37]} Ke3 {[%emt 0:00:13]} 112. Kd5 {[%emt 0:01:11]} Kd3 {[%emt 0:00:09] Ke4+} 1/2-1/2

[Event "EYCC Girls-U12 2019"]
[Site "Bratislava"]
[Date "2019.08.06"]
[Round "5.10"]
[White "Ivanova, Dilyana"]
[Black "Chicarosie, Ioana-Bianca"]
[Result "1-0"]
[ECO "C05"]
[WhiteElo "1734"]
[BlackElo "1580"]
[Annotator "NA"]
[PlyCount "91"]
[EventDate "2019.08.02"]
[EventType "swiss"]
[EventCountry "SVK"]
[SourceTitle "playchess.com"]
[Source "ChessBase"]
[SourceQuality "1"]
[TimeControl "40/5400+30:1800+30"]

1. e4 {[%emt 0:00:00]} e6 {[%emt 0:00:00]} 2. d4 {[%emt 0:00:00]} d5 {[%emt 0:00:00]} 3. Nd2 {[%emt 0:00:00]} Nf6 {[%emt 0:00:00]} 4. e5 {[%emt 0:00:00]} Nfd7 {[%emt 0:00:12]} 5. Bd3 {[%emt 0:00:00]} c5 {[%emt 0:00:21]} 6. c3 {[%emt 0:00:02]} b6 {[%emt 0:00:46]} 7. Ne2 {[%emt 0:01:32]} Ba6 {[%emt 0:01:51]} 8. Nf3 {[%emt 0:07:05]} Bxd3 {[%emt 0:02:21]} 9. Qxd3 {[%emt 0:00:08]} Nc6 {[%emt 0:00:33]} 10. O-O {[%emt 0:05:16]} Be7 {[%emt 0:02:08]} 11. Ne1 {[%emt 0:03:37]} O-O {[%emt 0:09:21]} 12. f4 {[%emt 0:05:17]} cxd4 {[%emt 0:15:30]} 13. cxd4 {[%emt 0:02:46]} f5 {[%emt 0:03:25]} 14. Bd2 {[%emt 0:07:28]} Rc8 {[%emt 0:07:15]} 15. Rc1 {[%emt 0:03:09]} Qc7 {[%emt 0:05:25]} 16. b4 {[%emt 0:07:54]} Qb7 {[%emt 0:03:26]} 17. b5 {[%emt 0:01:59]} Ncb8 {[%emt 0:02:38]} 18. Nc2 {[%emt 0:06:38]} Rc7 {[%emt 0:05:22]} 19. Bb4 {[%emt 0:09:16]} Bxb4 {[%emt 0:02:40]} 20. Nxb4 {[%emt 0:00:07]} Rfc8 {[%emt 0:00:52]} 21. Qa3 {[%emt 0:01:40]} Kf7 {[%emt 0:07:08]} 22. Rc3 {[%emt 0:11:45]} Rxc3 {[%emt 0:05:08]} 23. Nxc3 {[%emt 0:00:06]} Rc4 {[%emt 0:00:56]} 24. Nbxd5 {[%emt 0:07:33]} exd5 {[%emt 0:10:00]} 25. e6+ {[%emt 0:00:07]} Kg8 {[%emt 0:00:53]} 26. Qe7 {[%emt 0:02:28]} Qc8 {[%emt 0:08:12]} 27. Qf7+ {[%emt 0:00:19]} Kh8 {[%emt 0:00:16]} 28. e7 {[%emt 0:01:00]} Nf6 {[%emt 0:03:18]} 29. Qf8+ {[%emt 0:00:19]} Ng8 {[%emt 0:00:23]} 30. e8=Q {[%emt 0:00:11]} Qxe8 {[%emt 0:00:15]} 31. Qxe8 {[%emt 0:00:05]} Rxc3 {[%emt 0:00:04]} 32. Qxb8 {[%emt 0:00:06]} h6 {[%emt 0:00:16]} 33. Re1 {[%emt 0:00:55]} Kh7 {[%emt 0:00:08]} 34. Qxa7 {[%emt 0:00:41]} Rc4 {[%emt 0:00:17]} 35. Qxb6 {[%emt 0:00:13]} Ra4 {[%emt 0:00:15]} 36. Qc7 {[%emt 0:01:16]} Rxa2 {[%emt 0:00:17]} 37. b6 {[%emt 0:00:06]} Rb2 {[%emt 0:00:08]} 38. b7 {[%emt 0:00:06]} h5 {[%emt 0:00:12]} 39. b8=Q {[%emt 0:00:07]} Rxb8 {[%emt 0:00:02]} 40. Qxb8 {[%emt 0:00:00]} h4 {[%emt 0:00:00]} 41. Qf8 {[%emt 0:00:43]} Nf6 {[%emt 0:00:37]} 42. Re7 {[%emt 0:00:14]} Nh5 {[%emt 0:00:16]} 43. Qxf5+ {[%emt 0:00:08]} Kh6 {[%emt 0:00:06]} 44. Qg5+ {[%emt 0:00:14]} Kh7 {[%emt 0:00:04]} 45. Qxh5+ {[%emt 0:00:06]} Kg8 {[%emt 0:00:03]} 46. Re8# {[%emt 0:00:06]} 1-0

[Event "EYCC Girls-U12 2019"]
[Site "Bratislava"]
[Date "2019.08.06"]
[Round "5.11"]
[White "Khegai, Darya"]
[Black "Nordquelle, Amelia"]
[Result "0-1"]
[ECO "C50"]
[WhiteElo "1402"]
[BlackElo "1648"]
[Annotator "NA"]
[PlyCount "72"]
[EventDate "2019.08.02"]
[EventType "swiss"]
[EventCountry "SVK"]
[SourceTitle "playchess.com"]
[Source "ChessBase"]
[SourceQuality "1"]
[TimeControl "40/5400+30:1800+30"]

1. e4 {[%emt 0:00:00]} e5 {[%emt 0:00:00]} 2. Nf3 {[%emt 0:00:00]} Nc6 {[%emt 0:00:21]} 3. Bc4 {[%emt 0:00:38]} Nf6 {[%emt 0:01:13]} 4. d3 {[%emt 0:00:54]} Bc5 {[%emt 0:00:58]} 5. c3 {[%emt 0:00:22]} O-O {[%emt 0:03:04]} 6. Nbd2 {[%emt 0:01:05]} d5 {[%emt 0:01:50]} 7. exd5 {[%emt 0:04:57]} Nxd5 {[%emt 0:02:23]} 8. Ne4 {[%emt 0:01:16]} Bb6 {[%emt 0:02:41]} 9. O-O {[%emt 0:03:11]} Re8 {[%emt 0:08:52]} 10. Bb3 {[%emt 0:02:11]} f5 {[%emt 0:07:44]} 11. Ng3 {[%emt 0:03:13]} Na5 {[%emt 0:03:18]} 12. Bxd5+ {[%emt 0:03:04]} Qxd5 {[%emt 0:00:15]} 13. c4 {[%emt 0:00:14]} Qd6 {[%emt 0:00:28]} 14. a3 {[%emt 0:02:28]} e4 {[%emt 0:10:36]} 15. Ng5 {[%emt 0:02:34]} h6 {[%emt 0:05:13]} 16. Nh3 {[%emt 0:02:32]} Qxd3 {[%emt 0:03:01]} 17. Qh5 {[%emt 0:04:32]} Qd7 {[%emt 0:03:42]} 18. Nxf5 {[%emt 0:04:43]} Qf7 {[%emt 0:01:00]} 19. Nxg7 {[%emt 0:07:47]} Kxg7 {[%emt 0:00:58]} 20. Bxh6+ {[%emt 0:00:05]} Kg8 {[%emt 0:00:41]} 21. Qg5+ {[%emt 0:00:11]} Kh7 {[%emt 0:00:45]} 22. Nf4 {[%emt 0:10:41]} Bd4 {[%emt 0:13:46]} 23. Qxa5 {[%emt 0:00:15]} Kxh6 {[%emt 0:01:15]} 24. Qd2 {[%emt 0:00:09]} Bf6 {[%emt 0:01:33]} 25. Nd5+ {[%emt 0:00:41]} Bg5 {[%emt 0:01:44]} 26. Qd4 {[%emt 0:01:57]} c6 {[%emt 0:07:37]} 27. Nc3 {[%emt 0:01:01]} Bf5 {[%emt 0:05:59]} 28. f4 {[%emt 0:03:06]} Bf6 {[%emt 0:07:11]} 29. Qe3 {[%emt 0:01:07]} Rad8 {[%emt 0:02:26]} 30. Rad1 {[%emt 0:01:02]} Qxc4 {[%emt 0:00:56]} 31. Kh1 {[%emt 0:02:46]} Rd3 {[%emt 0:01:58]} 32. Rxd3 {[%emt 0:00:39]} Qxd3 {[%emt 0:00:17]} 33. Qe1 {[%emt 0:00:13]} Bxc3 {[%emt 0:00:54]} 34. bxc3 {[%emt 0:00:08]} e3 {[%emt 0:01:08]} 35. Rf3 {[%emt 0:02:10]} Qb1 {[%emt 0:00:24]} 36. Rh3+ {[%emt 0:00:49]} Kg6 {[%emt 0:00:38]} 0-1

[Event "EYCC Girls-U12 2019"]
[Site "Bratislava"]
[Date "2019.08.06"]
[Round "5.12"]
[White "Kalenichenko, Alina"]
[Black "Huang, Wendy"]
[Result "0-1"]
[ECO "E48"]
[WhiteElo "1549"]
[BlackElo "1784"]
[Annotator "NA"]
[PlyCount "110"]
[EventDate "2019.08.02"]
[EventType "swiss"]
[EventCountry "SVK"]
[SourceTitle "playchess.com"]
[Source "ChessBase"]
[SourceQuality "1"]
[TimeControl "40/5400+30:1800+30"]

1. d4 {[%emt 0:00:12]} Nf6 {[%emt 0:00:00]} 2. c4 {[%emt 0:00:05]} e6 {[%emt 0:00:00]} 3. Nc3 {[%emt 0:00:05]} Bb4 {[%emt 0:00:00]} 4. e3 {[%emt 0:00:15]} O-O {[%emt 0:00:53]} 5. Bd3 {[%emt 0:00:08]} d5 {[%emt 0:01:33]} 6. Nge2 {[%emt 0:00:33]} c5 {[%emt 0:05:28]} 7. cxd5 {[%emt 0:01:38]} cxd4 {[%emt 0:03:02]} 8. exd4 {[%emt 0:05:36]} Nxd5 {[%emt 0:04:25]} 9. O-O {[%emt 0:00:34]} Nc6 {[%emt 0:03:33]} 10. Nxd5 {[%emt 0:00:44]} Qxd5 {[%emt 0:05:44]} 11. Be3 {[%emt 0:00:13]} e5 {[%emt 0:08:56]} 12. dxe5 {[%emt 0:00:28]} Qxe5 {[%emt 0:00:29]} 13. Nd4 {[%emt 0:01:42]} Bd6 {[%emt 0:07:14]} 14. Nf3 {[%emt 0:01:03]} Qe7 {[%emt 0:01:23]} 15. Bg5 {[%emt 0:02:47]} f6 {[%emt 0:02:09]} 16. Bc4+ {[%emt 0:01:53]} Kh8 {[%emt 0:01:37]} 17. Re1 {[%emt 0:01:52]} Qc7 {[%emt 0:01:58]} 18. Bh4 {[%emt 0:03:30]} Bg4 {[%emt 0:03:04]} 19. Bg3 {[%emt 0:02:08]} Rad8 {[%emt 0:08:04]} 20. Qc1 {[%emt 0:10:41]} Bxf3 {[%emt 0:03:48]} 21. gxf3 {[%emt 0:00:11]} Nd4 {[%emt 0:01:23]} 22. Qc3 {[%emt 0:08:17]} Bxg3 {[%emt 0:03:24]} 23. hxg3 {[%emt 0:00:42]} b5 {[%emt 0:01:46]} 24. Be2 {[%emt 0:07:44]} Qxc3 {[%emt 0:00:34]} 25. bxc3 {[%emt 0:00:09]} Nc2 {[%emt 0:00:26]} 26. Bxb5 {[%emt 0:00:07]} Nxa1 {[%emt 0:01:22]} 27. Rxa1 {[%emt 0:00:06]} Rd2 {[%emt 0:02:32]} 28. c4 {[%emt 0:01:28]} Rfd8 {[%emt 0:02:11]} 29. c5 {[%emt 0:04:09]} Rd1+ {[%emt 0:01:30]} 30. Rxd1 {[%emt 0:00:06]} Rxd1+ {[%emt 0:00:04]} 31. Kg2 {[%emt 0:00:06]} Rd5 {[%emt 0:00:15]} 32. a4 {[%emt 0:00:46]} Rxc5 {[%emt 0:00:06]} 33. f4 {[%emt 0:00:05]} Rc3 {[%emt 0:01:11]} 34. g4 {[%emt 0:00:32]} g6 {[%emt 0:01:25]} 35. f3 {[%emt 0:00:08]} Rc2+ {[%emt 0:00:37]} 36. Kg3 {[%emt 0:00:07]} Kg7 {[%emt 0:00:17]} 37. g5 {[%emt 0:01:34]} f5 {[%emt 0:00:54]} 38. Ba6 {[%emt 0:01:22]} Kf8 {[%emt 0:03:11]} 39. Bb5 {[%emt 0:00:08]} Ke7 {[%emt 0:00:19]} 40. Ba6 {[%emt 0:00:00]} Kd6 {[%emt 0:00:00]} 41. Bb5 {[%emt 0:00:18]} Kc5 {[%emt 0:01:40]} 42. Be8 {[%emt 0:01:05]} Kb4 {[%emt 0:01:07]} 43. Kh3 {[%emt 0:00:16]} Ra2 {[%emt 0:04:14]} 44. Bf7 {[%emt 0:00:23]} Rxa4 {[%emt 0:00:32]} 45. Bg8 {[%emt 0:00:07]} Ra6 {[%emt 0:00:11]} 46. Bxh7 {[%emt 0:00:09]} Rd6 {[%emt 0:01:07]} 47. Bg8 {[%emt 0:00:15]} a5 {[%emt 0:00:11]} 48. Kh4 {[%emt 0:00:32]} a4 {[%emt 0:00:08]} 49. Bf7 {[%emt 0:00:08]} a3 {[%emt 0:00:09]} 50. Bxg6 {[%emt 0:01:12]} Rxg6 {[%emt 0:00:06]} 51. Kh5 {[%emt 0:00:05]} Rd6 {[%emt 0:00:26]} 52. g6 {[%emt 0:00:06]} a2 {[%emt 0:00:23]} 53. g7 {[%emt 0:00:05]} a1=Q {[%emt 0:01:06]} 54. g8=Q {[%emt 0:00:09]} Qh1+ {[%emt 0:00:12]} 55. Kg5 {[%emt 0:00:48]} Qg2+ {[%emt 0:00:12]} 0-1

[Event "EYCC Girls-U12 2019"]
[Site "Bratislava"]
[Date "2019.08.06"]
[Round "5.13"]
[White "Berezovsky, Fiorina"]
[Black "Lomakina, Anzhelika"]
[Result "1-0"]
[ECO "A40"]
[WhiteElo "1591"]
[BlackElo "1752"]
[Annotator "NA"]
[PlyCount "105"]
[EventDate "2019.08.02"]
[EventType "swiss"]
[EventCountry "SVK"]
[SourceTitle "playchess.com"]
[Source "ChessBase"]
[SourceQuality "1"]
[TimeControl "40/5400+30:1800+30"]

1. d4 {[%emt 0:00:00]} Nf6 {[%emt 0:00:00]} 2. c4 {[%emt 0:00:22]} e6 {[%emt 0:00:00]} 3. g3 {[%emt 0:00:36]} Bb4+ {[%emt 0:01:24]} 4. Bd2 {[%emt 0:01:19]} Qe7 {[%emt 0:00:22]} 5. Nc3 {[%emt 0:01:12]} Nc6 {[%emt 0:06:04]} 6. a3 {[%emt 0:05:43]} Bxc3 {[%emt 0:00:28]} 7. Bxc3 {[%emt 0:00:28]} Ne4 {[%emt 0:05:07]} 8. Rc1 {[%emt 0:04:28]} O-O {[%emt 0:02:59]} 9. Bg2 {[%emt 0:04:03]} d5 {[%emt 0:03:34]} 10. cxd5 {[%emt 0:02:50]} exd5 {[%emt 0:00:29]} 11. Nf3 {[%emt 0:02:03]} Re8 {[%emt 0:02:59]} 12. h4 {[%emt 0:38:44]} Bg4 {[%emt 0:03:19]} 13. Rc2 {[%emt 0:11:31]} Rac8 {[%emt 0:16:14]} 14. e3 {[%emt 0:03:18]} Qf6 {[%emt 0:09:14]} 15. O-O {[%emt 0:01:47]} Ne7 {[%emt 0:03:10]} 16. Bb4 {[%emt 0:04:38]} Nc6 {[%emt 0:06:19]} 17. Bc3 {[%emt 0:00:30]} h6 {[%emt 0:02:15]} 18. Qe2 {[%emt 0:02:35]} Ne7 {[%emt 0:02:05]} 19. Bb4 {[%emt 0:00:16]} Nf5 {[%emt 0:01:06]} 20. Qb5 {[%emt 0:04:52]} Bxf3 {[%emt 0:19:19]} 21. Bxf3 {[%emt 0:00:02]} Nexg3 {[%emt 0:01:34]} 22. fxg3 {[%emt 0:03:04]} Nxe3 {[%emt 0:00:57]} 23. Bxd5 {[%emt 0:02:39]} Nxf1 {[%emt 0:01:22]} 24. Rf2 {[%emt 0:01:55]} Qxd4 {[%emt 0:02:10]} 25. Bxf7+ {[%emt 0:00:11]} Kh8 {[%emt 0:03:33]} 26. Bxe8 {[%emt 0:00:12]} Nxg3 {[%emt 0:02:41]} 27. Kg2 {[%emt 0:01:06]} Qe4+ {[%emt 0:03:02]} 28. Kxg3 {[%emt 0:00:09]} Rxe8 {[%emt 0:00:05]} 29. Qxe8+ {[%emt 0:00:15]} Qxe8 {[%emt 0:00:08]} 30. Rf8+ {[%emt 0:00:04]} Qxf8 {[%emt 0:00:05]} 31. Bxf8 {[%emt 0:00:02]} Kg8 {[%emt 0:00:14]} 32. Bc5 {[%emt 0:00:15]} b6 {[%emt 0:00:19]} 33. Be3 {[%emt 0:00:37]} Kf7 {[%emt 0:02:01]} 34. b4 {[%emt 0:00:13]} Ke6 {[%emt 0:01:10]} 35. Kg4 {[%emt 0:00:54]} g5 {[%emt 0:01:07]} 36. h5 {[%emt 0:01:02]} Kd5 {[%emt 0:00:26]} 37. Kf5 {[%emt 0:00:12]} c5 {[%emt 0:00:29]} 38. bxc5 {[%emt 0:00:15]} bxc5 {[%emt 0:00:04]} 39. Kg6 {[%emt 0:00:37]} c4 {[%emt 0:00:36]} 40. Kxh6 {[%emt 0:00:00]} c3 {[%emt 0:00:00]} 41. Bxg5 {[%emt 0:00:40]} Kc4 {[%emt 0:03:54]} 42. Kg7 {[%emt 0:00:49]} Kb3 {[%emt 0:00:06]} 43. h6 {[%emt 0:00:10]} Kxa3 {[%emt 0:00:47]} 44. h7 a5 45. h8=Q {[%emt 0:00:42]} a4 {[%emt 0:00:33]} 46. Bc1+ {[%emt 0:00:11]} Ka2 {[%emt 0:00:13]} 47. Qh2+ {[%emt 0:00:25]} Kb1 {[%emt 0:00:06]} 48. Bg5 {[%emt 0:02:36]} c2 {[%emt 0:00:09]} 49. Qg1+ {[%emt 0:00:29]} Kb2 {[%emt 0:00:04]} 50. Qb6+ {[%emt 0:00:16]} Ka2 {[%emt 0:00:07]} 51. Qa5 {[%emt 0:01:14]} a3 {[%emt 0:00:05]} 52. Bc1 {[%emt 0:00:11]} Kb1 {[%emt 0:00:06]} 53. Bxa3 1-0

[Event "EYCC Girls-U12 2019"]
[Site "Bratislava"]
[Date "2019.08.06"]
[Round "5.14"]
[White "Denic, Hana"]
[Black "Putinceva, Marina"]
[Result "1-0"]
[ECO "C44"]
[WhiteElo "1821"]
[BlackElo "1476"]
[Annotator "NA"]
[PlyCount "155"]
[EventDate "2019.08.02"]
[EventType "swiss"]
[EventCountry "SVK"]
[SourceTitle "playchess.com"]
[Source "ChessBase"]
[SourceQuality "1"]
[TimeControl "40/5400+30:1800+30"]

1. e4 {[%emt 0:00:00]} e5 {[%emt 0:00:00]} 2. Nf3 {[%emt 0:00:00]} Nc6 {[%emt 0:00:00]} 3. c3 {[%emt 0:00:06]} d5 {[%emt 0:00:05]} 4. Qa4 {[%emt 0:00:39]} f6 {[%emt 0:00:35]} 5. d3 {[%emt 0:02:05]} Nge7 {[%emt 0:08:17]} 6. Be2 {[%emt 0:06:19]} dxe4 {[%emt 0:06:39]} 7. dxe4 {[%emt 0:00:37]} Bd7 {[%emt 0:02:25]} 8. Qc2 {[%emt 0:02:18]} Ng6 {[%emt 0:02:48]} 9. Be3 {[%emt 0:04:18]} Bd6 {[%emt 0:04:42]} 10. O-O {[%emt 0:02:04]} Qe7 {[%emt 0:02:28]} 11. b4 {[%emt 0:05:02]} O-O {[%emt 0:02:48]} 12. Nbd2 {[%emt 0:03:46]} b6 {[%emt 0:08:05]} 13. Rfd1 {[%emt 0:08:07]} Rfd8 {[%emt 0:07:24]} 14. Nc4 {[%emt 0:07:06]} Be6 {[%emt 0:02:32]} 15. Rd2 {[%emt 0:03:33]} Rd7 {[%emt 0:02:11]} 16. Qa4 {[%emt 0:03:32]} Nd8 {[%emt 0:04:45]} 17. Rad1 {[%emt 0:05:16]} Nf7 {[%emt 0:01:19]} 18. Qa6 {[%emt 0:09:12]} Rdd8 {[%emt 0:08:34]} 19. Qa4 {[%emt 0:03:16]} Bd7 {[%emt 0:03:50]} 20. Qb3 {[%emt 0:01:43]} Be6 {[%emt 0:00:30]} 21. Qc2 {[%emt 0:01:48]} a5 {[%emt 0:07:25]} 22. b5 {[%emt 0:08:00]} Bc5 {[%emt 0:05:01]} 23. Rxd8+ {[%emt 0:08:07]} Rxd8 {[%emt 0:00:09]} 24. Rxd8+ {[%emt 0:00:38]} Nxd8 {[%emt 0:00:02]} 25. g3 {[%emt 0:01:18]} Nb7 {[%emt 0:07:29]} 26. Nfd2 {[%emt 0:02:18]} Qd7 {[%emt 0:03:24]} 27. a4 {[%emt 0:00:35]} Bxe3 {[%emt 0:03:33]} 28. Nxe3 {[%emt 0:00:15]} Nc5 {[%emt 0:00:22]} 29. Ndc4 {[%emt 0:02:15]} Ne7 {[%emt 0:01:13]} 30. f3 {[%emt 0:01:38]} Nc8 {[%emt 0:01:38]} 31. Qd1 {[%emt 0:04:23]} Qxd1+ {[%emt 0:01:14]} 32. Bxd1 {[%emt 0:00:04]} Kf7 {[%emt 0:02:27]} 33. Bc2 {[%emt 0:00:45]} Ke7 {[%emt 0:00:46]} 34. f4 {[%emt 0:00:24]} exf4 {[%emt 0:00:36]} 35. gxf4 {[%emt 0:00:10]} Nd6 {[%emt 0:00:51]} 36. Nxd6 {[%emt 0:00:54]} Kxd6 {[%emt 0:00:03]} 37. c4 {[%emt 0:00:50]} Nd7 {[%emt 0:00:47]} 38. Nd5 {[%emt 0:01:44]} Bxd5 {[%emt 0:00:38]} 39. cxd5 {[%emt 0:00:24]} f5 {[%emt 0:01:15]} 40. e5+ {[%emt 0:00:00]} Kxd5 {[%emt 0:00:00]} 41. Bxf5 {[%emt 0:06:01]} Nf8 {[%emt 0:08:36]} 42. h4 {[%emt 0:04:37]} g6 {[%emt 0:05:19]} 43. Bc8 {[%emt 0:01:56]} h6 {[%emt 0:02:17]} 44. Kf2 {[%emt 0:01:08]} g5 {[%emt 0:01:11]} 45. hxg5 {[%emt 0:01:10]} hxg5 {[%emt 0:00:22]} 46. fxg5 {[%emt 0:01:55]} Kxe5 {[%emt 0:01:04]} 47. Kg3 {[%emt 0:00:52]} Ng6 {[%emt 0:07:24]} 48. Kg4 {[%emt 0:03:05]} Ne7 {[%emt 0:00:27]} 49. Bd7 {[%emt 0:01:26]} Nd5 {[%emt 0:05:47]} 50. Kh5 {[%emt 0:03:43]} Ne7 {[%emt 0:02:28]} 51. Kh6 {[%emt 0:02:40]} Kd6 {[%emt 0:00:17]} 52. Bg4 {[%emt 0:00:52]} c6 {[%emt 0:00:51]} 53. bxc6 {[%emt 0:01:00]} Kxc6 {[%emt 0:00:41]} 54. Be2 {[%emt 0:00:19]} Kd6 {[%emt 0:00:47]} 55. g6 {[%emt 0:01:04]} Ke6 {[%emt 0:00:22]} 56. g7 {[%emt 0:00:46]} Ng8+ {[%emt 0:00:41]} 57. Kh7 {[%emt 0:00:21]} Nf6+ {[%emt 0:00:18]} 58. Kh8 {[%emt 0:00:36]} Kd7 {[%emt 0:00:43]} 59. g8=Q {[%emt 0:00:20]} Nxg8 {[%emt 0:00:02]} 60. Kxg8 {[%emt 0:00:06]} Kd6 {[%emt 0:00:14]} 61. Kf7 {[%emt 0:00:13]} Kc7 {[%emt 0:00:17]} 62. Ke7 {[%emt 0:00:15]} Kb7 {[%emt 0:00:12]} 63. Kd7 {[%emt 0:00:07]} b5 {[%emt 0:00:35]} 64. Bxb5 {[%emt 0:00:24]} Kb6 65. Kc8 {[%emt 0:00:42]} Ka7 {[%emt 0:00:49]} 66. Kc7 {[%emt 0:00:07]} Ka8 {[%emt 0:00:17]} 67. Kb6 {[%emt 0:00:24]} Kb8 {[%emt 0:00:15]} 68. Kxa5 {[%emt 0:00:22]} Ka7 {[%emt 0:00:05]} 69. Ba6 {[%emt 0:00:09]} Kb8 {[%emt 0:00:04]} 70. Kb6 {[%emt 0:00:24]} Ka8 {[%emt 0:00:12]} 71. Bb7+ {[%emt 0:00:04]} Kb8 {[%emt 0:00:03]} 72. Be4 {[%emt 0:00:13]} Kc8 {[%emt 0:00:05]} 73. a5 {[%emt 0:00:05]} Kb8 {[%emt 0:00:10]} 74. a6 {[%emt 0:00:04]} Kc8 {[%emt 0:00:03]} 75. a7 {[%emt 0:00:22]} Kd7 {[%emt 0:00:03]} 76. a8=Q {[%emt 0:00:14]} Kd6 {[%emt 0:00:03]} 77. Qd5+ {[%emt 0:00:37]} Ke7 {[%emt 0:00:05]} 78. Kc7 {[%emt 0:00:13]} 1-0